{"text_format":"3","workbook":"xlsx","n_sheets":4,"sheets":["Σύνοψη μετρητών","Μετρητά που δαπανήθηκαν","Μηνιαία σύνοψη","Δεδομένα γραφήματος"],"not_rendered":{"charts":2,"defined_names":7,"pivot_tables":2},"read":"whole","date_system":"1900"}

{"sheet":"Σύνοψη μετρητών","index":0,"n_rows":22,"n_cols":7,"rows_kept":22,"merged":[[0,1,1,5],[2,1,2,2],[2,3,2,4],[3,1,18,1],[19,1,20,1],[21,1,22,1]]}
[null,"Προσωπικό εργαλείο παρακολούθησης χρημάτων"]
[{"$nulls":6},"Μετρητά που δαπανήθηκαν >"]
[{"$nulls":3},"Σύνοψη μετρητών"]
[null,"Το γράφημα στηλών που εμφανίζει το ποσοστό των διαθέσιμων μετρητών βρίσκεται σε αυτό το κελί.",null,"Λογαριασμός","Μετρητά έναρξης","Σύνολο δαπανών","Μετρητά που απομένουν"]
[{"$nulls":3},"Όψεως",{"v":3000,"d":"3000.00"},{"$f":"SUMIF(ΜετρητάΠουΔαπανήθηκαν[Λογαριασμός],\"=\" &ΠίνακαςΣύνοψηςΜετρητών[[#This Row],[Λογαριασμός]],ΜετρητάΠουΔαπανήθηκαν[Ποσό])","v":{"v":496,"d":"496.00"}},{"$f":"ΠίνακαςΣύνοψηςΜετρητών[[#This Row],[Μετρητά έναρξης]]-ΠίνακαςΣύνοψηςΜετρητών[[#This Row],[Σύνολο δαπανών]]","v":{"v":2504,"d":"2504.00"}}]
[{"$nulls":3},"Ταμιευτήριο",{"v":500,"d":"500.00"},{"$f":"SUMIF(ΜετρητάΠουΔαπανήθηκαν[Λογαριασμός],\"=\" &ΠίνακαςΣύνοψηςΜετρητών[[#This Row],[Λογαριασμός]],ΜετρητάΠουΔαπανήθηκαν[Ποσό])","v":{"v":450,"d":"450.00"}},{"$f":"ΠίνακαςΣύνοψηςΜετρητών[[#This Row],[Μετρητά έναρξης]]-ΠίνακαςΣύνοψηςΜετρητών[[#This Row],[Σύνολο δαπανών]]","v":{"v":50,"d":"50.00"}}]
[{"$nulls":3},"Άλλο",{"v":200,"d":"200.00"},{"$f":"SUMIF(ΜετρητάΠουΔαπανήθηκαν[Λογαριασμός],\"=\" &ΠίνακαςΣύνοψηςΜετρητών[[#This Row],[Λογαριασμός]],ΜετρητάΠουΔαπανήθηκαν[Ποσό])","v":{"v":30,"d":"30.00"}},{"$f":"ΠίνακαςΣύνοψηςΜετρητών[[#This Row],[Μετρητά έναρξης]]-ΠίνακαςΣύνοψηςΜετρητών[[#This Row],[Σύνολο δαπανών]]","v":{"v":170,"d":"170.00"}}]
[{"$nulls":3}," Άθροισμα ",{"$f":"SUBTOTAL(109,ΠίνακαςΣύνοψηςΜετρητών[Μετρητά έναρξης])","v":{"v":3700,"d":"3700.00"}},{"$f":"SUBTOTAL(109,ΠίνακαςΣύνοψηςΜετρητών[Σύνολο δαπανών])","v":{"v":976,"d":"976.00"}},{"$f":"SUBTOTAL(109,ΠίνακαςΣύνοψηςΜετρητών[Μετρητά που απομένουν])","v":{"v":2724,"d":"2724.00"}}]
{"$rows_empty":11}
[null,"Μετρητά\nΥπόλοιπο:"]
[]
[null,{"$f":"ΠίνακαςΣύνοψηςΜετρητών[[#Totals],[Μετρητά που απομένουν]]/ΠίνακαςΣύνοψηςΜετρητών[[#Totals],[Μετρητά έναρξης]]","v":{"v":0.7362162162162162,"d":"74%"}}]

{"sheet":"Μετρητά που δαπανήθηκαν","index":1,"n_rows":16,"n_cols":6,"rows_kept":16,"merged":[[0,1,1,3],[2,1,2,2],[3,5,6,6],[7,5,14,6]]}
[null,"Προσωπικό εργαλείο παρακολούθησης χρημάτων"]
[{"$nulls":4},"< Σύνοψη μετρητών","Μηνιαία σύνοψη >"]
[null,"Μετρητά που δαπανήθηκαν"]
[null,"Ημερομηνία","Περιγραφή","Ποσό","Λογαριασμός","Σε αυτό το κελί βρίσκεται ο αναλυτής για φιλτράρισμα των δεδομένων του πίνακα με βάση τον τύπο λογαριασμού."]
[null,{"$f":"TODAY()+105","v":"2023-03-23"},"Ανάληψη ATM",{"v":40,"d":"40.00"},"Όψεως"]
[null,{"$f":"TODAY()+106","v":"2023-03-24"},"Γεύμα",{"v":5,"d":"5.00"},"Όψεως"]
[null,{"$f":"TODAY()+107","v":"2023-03-25"},"Δόση αυτοκινήτου",{"v":230,"d":"230.00"},"Ταμιευτήριο"]
[null,{"$f":"TODAY()+135","v":"2023-04-22"},"Πληρωμή λογαριασμού ηλεκτρικού ρεύματος",{"v":70,"d":"70.00"},"Όψεως","Σε αυτό το κελί βρίσκεται ο αναλυτής για φιλτράρισμα των δεδομένων του πίνακα με βάση την περιγραφή."]
[null,{"$f":"TODAY()+139","v":"2023-04-26"},"Δείπνο",{"v":53,"d":"53.00"},"Όψεως"]
[null,{"$f":"TODAY()+162","v":"2023-05-19"},"Ανάληψη μετρητών",{"v":100,"d":"100.00"},"Ταμιευτήριο"]
[null,{"$f":"TODAY()+167","v":"2023-05-24"},"Δόση αυτοκινήτου",{"v":230,"d":"230.00"},"Όψεως"]
[null,{"$f":"TODAY()+198","v":"2023-06-24"},"Πληρωμή λογαριασμού ηλεκτρικού ρεύματος",{"v":70,"d":"70.00"},"Ταμιευτήριο"]
[null,{"$f":"TODAY()+212","v":"2023-07-08"},"Ανάληψη ATM",{"v":30,"d":"30.00"},"Όψεως"]
[null,{"$f":"TODAY()+225","v":"2023-07-21"},"Ανάληψη ATM",{"v":50,"d":"50.00"},"Ταμιευτήριο"]
[null,{"$f":"TODAY()+232","v":"2023-07-28"},"Ανάληψη ATM",{"v":30,"d":"30.00"},"Άλλο"]
[null,{"$f":"TODAY()+283","v":"2023-09-17"},"Πληρωμή λογαριασμού ηλεκτρικού ρεύματος",{"v":68,"d":"68.00"},"Όψεως"]

{"sheet":"Μηνιαία σύνοψη","index":2,"n_rows":37,"n_cols":6,"rows_kept":37,"merged":[[0,1,1,4],[2,1,2,5],[3,1,3,6],[4,1,16,4],[4,5,8,6],[9,5,16,6],[17,1,17,5]]}
[null,"Μηνιαία σύνοψη"]
[{"$nulls":5},"< Μετρητά που δαπανήθηκαν"]
[null,"Για να ενημερώσετε αυτά τα δεδομένα, επιλέξτε πρώτα το Συγκεντρωτικό Γράφημα. Κάντε δεξί κλικ για να εμφανιστεί το μενού συντόμευσης. Επιλέξτε ανανέωση ή ανανέωση όλων για να ενημερώσετε το γράφημα."]
[null,"Σύνοψη λογαριασμών"]
[null,"Σε αυτό το κελί βρίσκεται το γράφημα στηλών της σύνοψης λογαριασμών που συγκρίνει τους λογαριασμούς όψεως, ταμιευτηρίου και άλλους για κάθε μήνα.",{"$nulls":3},"Σε αυτό το κελί βρίσκεται ο αναλυτής για φιλτράρισμα του γραφήματος με βάση τον τύπο λογαριασμού."]
[]
[]
[]
[]
[{"$nulls":5},"Σε αυτό το κελί βρίσκεται ο αναλυτής για φιλτράρισμα του πίνακα με βάση την περιγραφή."]
{"$rows_empty":7}
[null,"Σύνοψη δαπανών"]
[null,"Λεπτομέρειες"]
[null,null,"Όψεως","Ταμιευτήριο","Άλλο","Γενικό Άθροισμα"]
[null,"Μαρ",{"v":45,"d":"45.00"},{"v":230,"d":"230.00"},null,{"v":275,"d":"275.00"}]
[null,"Ανάληψη ATM",{"v":40,"d":"40.00"},null,null,{"v":40,"d":"40.00"}]
[null,"Γεύμα",{"v":5,"d":"5.00"},null,null,{"v":5,"d":"5.00"}]
[null,"Δόση αυτοκινήτου",null,{"v":230,"d":"230.00"},null,{"v":230,"d":"230.00"}]
[null,"Απρ",{"v":123,"d":"123.00"},null,null,{"v":123,"d":"123.00"}]
[null,"Δείπνο",{"v":53,"d":"53.00"},null,null,{"v":53,"d":"53.00"}]
[null,"Πληρωμή λογαριασμού ηλεκτρικού ρεύματος",{"v":70,"d":"70.00"},null,null,{"v":70,"d":"70.00"}]
[null,"Μαϊ",{"v":230,"d":"230.00"},{"v":100,"d":"100.00"},null,{"v":330,"d":"330.00"}]
[null,"Ανάληψη μετρητών",null,{"v":100,"d":"100.00"},null,{"v":100,"d":"100.00"}]
[null,"Δόση αυτοκινήτου",{"v":230,"d":"230.00"},null,null,{"v":230,"d":"230.00"}]
[null,"Ιουν",null,{"v":70,"d":"70.00"},null,{"v":70,"d":"70.00"}]
[null,"Πληρωμή λογαριασμού ηλεκτρικού ρεύματος",null,{"v":70,"d":"70.00"},null,{"v":70,"d":"70.00"}]
[null,"Ιουλ",{"v":30,"d":"30.00"},{"v":50,"d":"50.00"},{"v":30,"d":"30.00"},{"v":110,"d":"110.00"}]
[null,"Ανάληψη ATM",{"v":30,"d":"30.00"},{"v":50,"d":"50.00"},{"v":30,"d":"30.00"},{"v":110,"d":"110.00"}]
[null,"Σεπ",{"v":68,"d":"68.00"},null,null,{"v":68,"d":"68.00"}]
[null,"Πληρωμή λογαριασμού ηλεκτρικού ρεύματος",{"v":68,"d":"68.00"},null,null,{"v":68,"d":"68.00"}]
[null,"Γενικό Άθροισμα",{"v":496,"d":"496.00"},{"v":450,"d":"450.00"},{"v":30,"d":"30.00"},{"v":976,"d":"976.00"}]

{"sheet":"Δεδομένα γραφήματος","index":3,"n_rows":11,"n_cols":6,"rows_kept":11,"merged":[[0,1,0,2]]}
[null,"Δεδομένα Συγκεντρωτικού Γραφήματος"]
[null,"Αυτός ο Συγκεντρωτικός Πίνακας είναι η προέλευση δεδομένων για το Συγκεντρωτικό Γράφημα της Σύνοψης Λογαριασμών στο δελτίο Μηνιαίας Σύνοψης."]
[null,"Άθροισμα από Ποσό","Ετικέτες στήλης"]
[null,"Ετικέτες γραμμής","Όψεως","Ταμιευτήριο","Άλλο","Γενικό Άθροισμα"]
[null,"Μαρ",{"v":45,"d":"45.00"},{"v":230,"d":"230.00"},null,{"v":275,"d":"275.00"}]
[null,"Απρ",{"v":123,"d":"123.00"},null,null,{"v":123,"d":"123.00"}]
[null,"Μαϊ",{"v":230,"d":"230.00"},{"v":100,"d":"100.00"},null,{"v":330,"d":"330.00"}]
[null,"Ιουν",null,{"v":70,"d":"70.00"},null,{"v":70,"d":"70.00"}]
[null,"Ιουλ",{"v":30,"d":"30.00"},{"v":50,"d":"50.00"},{"v":30,"d":"30.00"},{"v":110,"d":"110.00"}]
[null,"Σεπ",{"v":68,"d":"68.00"},null,null,{"v":68,"d":"68.00"}]
[null,"Γενικό Άθροισμα",{"v":496,"d":"496.00"},{"v":450,"d":"450.00"},{"v":30,"d":"30.00"},{"v":976,"d":"976.00"}]